bitfinex/quotes_ETHUSD_20260108
["timestamp","ask_amount","ask_price","bid_price","bid_amount"]
[1767883016929,6.48950322,3081.9,3081.0,0.002]
[1767883017306,3.24475161,3081.9,3081.0,0.002]
[1767883017539,0.849,3082.0,3081.0,0.002]
[1767883017806,0.849,3082.5,3081.1,0.05851375]
[1767883018343,0.849,3082.5,3080.6,11.5286993]
[1767883018344,0.16,3082.3,3080.2,0.94333666]
[1767883018541,0.16,3082.3,3080.1,3.24664468]
[1767883018710,0.16,3082.3,3079.9,0.05851375]
[1767883018913,9.73362315,3082.1,3079.9,0.05851375]
[1767883019117,12.9781642,3082.1,3079.9,3.24681425]
[1767883019314,9.73362315,3082.1,3079.9,6.49367291]
[1767883019636,0.849,3082.0,3080.2,1.00185041]
[1767883019824,0.849,3082.0,3080.4,0.05851375]
[1767883020142,0.73380821,3081.9,3080.4,0.05851375]
[1767883020452,0.35557802,3082.2,3080.8,1.00185041]
[1767883020732,0.35557802,3082.2,3080.5,0.847]
[1767883020733,10.58041299,3082.8,3080.5,0.90551375]
[1767883020940,0.849,3082.7,3080.7,0.05851375]
[1767883021138,9.73204437,3082.6,3080.8,3.24591015]
[1767883021307,1.05810444,3082.5,3080.8,3.24591015]
[1767883021502,1.05810444,3082.5,3080.9,1.00185041]
[1767883021764,9.73204437,3082.6,3080.8,3.24591015]
[1767883022035,9.73204437,3082.6,3080.1,1.42960543]
[1767883022036,3.78330042,3082.2,3080.1,0.94333666]
[1767883022235,3.78330042,3082.2,3080.0,0.002]
[1767883022236,3.78330042,3081.7,3080.0,0.002]
[1767883022437,3.78330042,3081.2,3080.0,0.002]
[1767883022617,0.849,3081.1,3080.0,0.002]
[1767883022819,0.849,3081.0,3080.0,0.002]
[1767883023341,9.73741437,3080.9,3080.0,0.002]
[1767883023638,1.05864144,3080.8,3080.0,0.002]
[1767883023805,5.14584665,3080.8,3079.3,0.002]
[1767883024006,1.05864144,3080.8,3079.3,0.002]
[1767883024243,0.849,3081.0,3080.3,0.002]
[1767883024540,0.849,3081.5,3080.3,0.002]
[1767883024709,4.93620521,3081.4,3080.3,0.002]
[1767883025145,7.33976688,3081.3,3080.3,0.002]
[1767883025305,8.07374357,3081.3,3080.3,0.002]
[1767883025702,11.31912701,3081.3,3080.3,0.002]
[1767883026133,7.22474357,3081.3,3080.3,0.002]
[1767883026335,0.849,3081.2,3080.3,0.002]
[1767883026752,0.849,3081.6,3080.3,0.002]
[1767883027442,3.2451728,3081.5,3080.3,0.002]
[1767883028148,9.7355184,3081.5,3080.3,0.002]
[1767883028444,12.9806912,3081.5,3080.3,0.002]
[1767883028652,9.7355184,3081.5,3080.3,0.002]
[1767883029344,6.4903456,3081.5,3080.3,0.002]
[1767883029551,0.73393456,3081.4,3080.3,0.002]
[1767883030952,4.08720521,3080.9,3079.3,0.002]
[1767883031157,9.73804653,3080.7,3079.3,0.002]
[1767883031446,12.98406204,3080.7,3079.3,0.002]
[1767883031651,4.14571896,3080.4,3079.0,0.002]
[1767883031813,0.91960218,3080.3,3079.0,0.002]
[1767883032013,0.849,3080.2,3079.0,0.002]
[1767883032219,12.98406204,3080.7,3079.0,0.002]
[1767883032220,9.73804653,3080.7,3079.0,0.002]
[1767883032517,5.00680739,3080.0,3078.7,0.002]
[1767883032716,1.76860218,3079.9,3078.7,0.002]
[1767883033151,0.849,3079.9,3078.7,0.002]
[1767883033750,4.09590322,3079.9,3078.7,0.002]
[1767883034048,0.849,3079.9,3078.7,0.002]
[1767883034249,3.24622626,3080.5,3078.8,0.93475065]
[1767883034461,0.64923672,3080.4,3078.8,0.93475065]
[1767883034660,6.49245252,3080.5,3078.8,0.93475065]
[1767883034945,6.49245252,3080.5,3078.7,0.002]
[1767883035448,4.08720521,3080.1,3078.7,0.002]
[1767883035650,0.849,3080.0,3078.7,0.002]
[1767883035849,0.49362052,3079.9,3078.7,0.002]
[1767883036052,4.08720521,3079.6,3078.7,0.002]
[1767883036250,4.08720521,3079.6,3077.8,3.24707109]
[1767883036555,0.849,3080.0,3078.4,0.93475065]
[1767883036755,0.849,3080.0,3078.5,0.93475065]
[1767883037318,0.849,3080.0,3078.6,3.24822971]
[1767883037319,3.24685866,3079.9,3078.6,3.24822971]
[1767883037544,0.849,3080.0,3078.6,6.49645942]
[1767883038052,0.849,3080.0,3077.9,0.93475065]
[1767883038053,3.24685866,3079.9,3077.9,0.93475065]
[1767883038217,0.40958587,3079.8,3078.3,3.24850655]
[1767883038419,0.40958587,3079.8,3078.5,3.24830802]
[1767883038651,3.24685866,3079.9,3078.9,0.002]
[1767883038944,0.849,3080.0,3078.9,0.002]
[1767883039150,7.34256865,3080.0,3078.9,0.002]
[1767883039318,4.09575324,3080.0,3078.9,0.002]
[1767883039517,3.24635583,3080.4,3078.9,0.002]
[1767883039746,1.17363496,3080.3,3078.9,0.002]
[1767883039964,0.849,3080.3,3078.9,0.93675065]
[1767883040129,0.001,3081.0,3078.9,0.93675065]
[1767883040130,0.849,3080.7,3078.9,0.93675065]
[1767883040527,0.849,3080.7,3079.1,0.93475065]
[1767883041233,0.849,3080.7,3079.2,6.49519354]
[1767883041435,4.09501551,3080.7,3079.2,6.49519354]
[1767883041657,0.849,3080.7,3079.2,6.49519354]
[1767883041821,3.2467244,3081.0,3079.3,0.9932644]
[1767883042021,6.4924488,3081.0,3079.3,0.9932644]
[1767883042366,3.2467244,3081.0,3079.3,0.9932644]
[1767883042555,3.2467244,3081.0,3079.5,0.9932644]
[1767883042556,0.001,3081.0,3079.5,0.9932644]
[1767883042754,0.91960218,3082.7,3080.0,0.93475065]
[1767883042755,0.849,3082.0,3080.0,0.93475065]
[1767883043249,0.849,3082.0,3079.2,12.99038708]
[1767883043250,12.9806912,3081.5,3079.4,4.18205222]
[1767883043449,4.08720521,3081.1,3078.9,0.002]
[1767883043621,4.08720521,3081.1,3079.0,3.24772566]
[1767883043817,4.08720521,3081.1,3079.2,3.24758215]
[1767883044024,4.08720521,3081.1,3079.1,3.24767025]
[1767883044356,1.25772052,3081.0,3079.4,3.24738585]
[1767883044529,0.849,3080.9,3079.4,4.1821365]
[1767883044728,6.4903456,3081.5,3079.5,0.9932644]
[1767883044942,0.849,3081.4,3079.5,0.9932644]
[1767883045130,0.73393456,3081.3,3079.5,0.93475065]
[1767883045432,0.73393456,3081.3,3079.6,0.93475065]
[1767883045636,6.49077294,3081.3,3079.6,0.93475065]
[1767883045831,3.24538647,3081.3,3079.7,0.9932644]
[1767883046033,1.07960218,3082.3,3079.7,0.9932644]
[1767883046362,3.24280163,3083.8,3079.7,0.9932644]
[1767883046363,6.48887158,3082.2,3080.2,0.9932644]
[1767883046525,8.94133623,3083.9,3080.8,0.9932644]
[1767883046526,6.48760866,3082.8,3080.8,0.9932644]
[1767883046730,7.33660866,3082.8,3081.0,0.05851375]
[1767883046932,7.33660866,3082.8,3080.8,1.78275065]
[1767883047136,10.58041299,3082.8,3080.5,0.848]
[1767883047339,9.73204437,3082.6,3080.3,6.49287406]
[1767883047834,6.48802958,3082.6,3080.6,0.05851375]
[1767883048023,3.24401479,3082.6,3080.9,0.9932644]
[1767883048223,7.33702958,3082.6,3080.9,0.93475065]
[1767883048429,0.73370296,3082.5,3080.5,0.05851375]
[1767883048634,0.73370296,3082.5,3080.3,6.55138781]
[1767883048833,0.73370296,3082.5,3080.3,9.79782484]
[1767883049044,0.73370296,3082.5,3080.4,0.9932644]
[1767883049570,6.48845054,3082.4,3080.5,6.49245252]
[1767883049771,0.72221535,3082.3,3080.5,3.24622626]
[1767883050148,0.72221535,3082.3,3080.4,3.24628432]
[1767883050861,0.72221535,3082.3,3079.8,0.16]
[1767883050862,4.08720521,3082.0,3080.3,3.24636096]
[1767883051173,0.849,3081.9,3080.4,3.24633066]
[1767883051472,9.7345707,3081.8,3079.9,3.24677527]
[1767883051773,9.7345707,3081.8,3079.9,6.49363393]
[1767883051941,0.849,3081.7,3080.0,0.93475065]
[1767883052146,0.849,3081.7,3080.0,0.9932644]
[1767883052344,1.58287138,3081.7,3080.1,0.93176202]
[1767883052871,1.58287138,3081.7,3079.9,6.49363393]
[1767883053444,9.73520247,3081.6,3079.6,3.24717495]
[1767883053652,17.06747517,3081.6,3079.5,3.24723851]
[1767883053847,6.49013498,3081.6,3079.6,0.99027577]
[1767883054050,1.57140064,3081.5,3079.8,0.93176202]
[1767883054269,0.72240064,3081.5,3079.8,0.93176202]
[1767883054586,3.24506749,3081.6,3079.8,0.93176202]
[1767883054587,0.849,3081.4,3079.8,0.93176202]
[1767883055446,6.49076688,3081.3,3079.7,3.24706951]
[1767883055649,6.49076688,3081.3,3079.4,3.24938335]
[1767883055650,12.98153376,3081.3,3079.4,3.24938335]
[1767883056178,9.73615032,3081.3,3079.4,0.002]
[1767883056359,1.05851503,3081.2,3079.4,0.002]
[1767883056552,1.05851503,3081.2,3079.5,3.24721403]
[1767883056754,1.05851503,3081.2,3079.4,0.002]
[1767883056979,0.05851375,3080.8,3079.4,0.002]
[1767883057182,4.08720521,3080.1,3079.0,1e-08]
[1767883057356,1.25772052,3080.0,3079.0,1e-08]
[1767883057545,1.25772052,3080.0,3078.5,0.002]
[1767883057546,4.08720521,3079.6,3078.5,0.002]
[1767883057748,4.08720521,3079.6,3077.8,0.002]
[1767883057749,0.90751375,3079.5,3077.8,0.002]
[1767883057974,4.08720521,3079.1,3077.8,0.002]
[1767883058175,0.849,3079.0,3077.8,0.002]
[1767883058376,0.49362052,3078.9,3077.8,0.002]
[1767883058684,0.49362052,3078.9,3077.1,0.002]
[1767883058685,4.08720521,3078.1,3077.1,0.002]
[1767883058880,4.08720521,3078.1,3076.0,0.93376202]
[1767883058881,4.08720521,3077.6,3076.0,0.002]
[1767883059068,1.02096157,3078.4,3076.0,0.002]
[1767883059069,0.05851375,3078.4,3076.6,3.25031756]
[1767883059377,0.849,3078.3,3076.9,3.25002437]
[1767883059578,5.04965303,3079.1,3076.5,3.25044693]
[1767883059579,0.849,3078.2,3076.5,3.25044693]
[1767883059989,0.849,3078.2,3076.5,6.50089386]
[1767883060350,0.05851375,3078.9,3076.6,0.05851375]
[1767883060689,1.82919369,3078.8,3076.6,0.05851375]
[1767883060976,0.849,3078.7,3077.1,0.05851375]
[1767883061276,0.849,3078.7,3076.6,0.99027577]
[1767883061460,0.849,3078.7,3076.8,0.05851375]
[1767883061793,6.49645942,3078.6,3076.9,3.25002437]
[1767883061949,6.49645942,3078.6,3076.9,6.50004874]
[1767883062370,3.24822971,3078.6,3076.9,6.50004874]
[1767883062562,6.49645942,3078.6,3076.9,6.50004874]
[1767883062750,3.24822971,3078.6,3076.9,6.50004874]
[1767883062951,6.49645942,3078.6,3076.9,6.50004874]
[1767883063146,0.73454594,3078.5,3076.9,9.75007311]
[1767883063351,0.85,3078.4,3076.9,6.50004874]
[1767883063587,0.85,3078.3,3077.1,6.49962626]
[1767883063791,0.85,3078.3,3077.1,3.24981313]
[1767883063991,0.85,3078.3,3077.0,3.24989903]
[1767883064663,0.85,3078.3,3076.9,3.24999151]
[1767883064864,0.85,3078.3,3076.2,0.05851375]
[1767883065061,0.85,3078.3,3076.0,0.06051375]
[1767883065062,4.08720521,3078.0,3076.3,3.25055376]
[1767883065266,4.08720521,3078.0,3076.0,0.002]
[1767883065592,0.40872052,3077.9,3076.0,0.002]
[1767883065885,9.74722203,3077.8,3076.0,0.002]
[1767883066060,0.85,3077.7,3076.0,0.002]
[1767883066849,0.85,3077.7,3077.0,0.002]
[1767883067421,0.85,3077.6,3077.0,0.002]
[1767883067561,1.5848148,3077.6,3077.0,0.002]
[1767883067750,6.49878146,3077.5,3077.0,0.002]
[1767883067957,0.96244782,3077.1,3075.8,8.07e-06]
[1767883068181,0.96244782,3077.1,3075.6,8.07e-06]
[1767883068182,4.08720521,3076.3,3075.6,8.07e-06]
[1767883068451,1.25872052,3076.2,3075.6,8.07e-06]
[1767883068648,0.85,3076.1,3075.6,8.07e-06]
[1767883069048,4.08720521,3076.8,3075.6,8.07e-06]
[1767883069252,4.08720521,3076.8,3074.4,0.002]
[1767883069253,4.08720521,3076.3,3074.4,0.002]
[1767883069682,4.08720521,3075.8,3074.4,0.002]
[1767883069985,7.76130528,3075.7,3074.4,0.002]
[1767883070364,0.85,3075.6,3074.4,0.002]
[1767883071490,4.08720521,3075.2,3073.8,0.002]
[1767883071853,4.08720521,3074.7,3073.8,0.002]
[1767883072058,4.08720521,3074.7,3072.2,0.002]
[1767883072059,5.10816678,3074.2,3072.2,0.002]
[1767883072279,4.93720521,3074.1,3072.2,0.002]
[1767883072464,0.85,3074.0,3072.2,0.002]
[1767883072885,0.05851375,3074.5,3072.2,0.002]
[1767883073074,0.85,3074.4,3072.7,3.25443329]
[1767883073379,0.4145719,3074.4,3073.1,3.25399056]
[1767883073558,0.85,3074.3,3073.1,3.25399056]
[1767883074116,3.25213828,3074.9,3072.7,6.5089335]
[1767883074272,9.75609756,3075.0,3072.7,6.5089335]
[1767883074453,1.39018165,3074.9,3072.7,6.5089335]
[1767883074658,1.39018165,3074.9,3072.8,0.05851375]
[1767883074971,0.85,3074.8,3072.8,0.05851375]
[1767883075177,0.85,3074.7,3072.7,9.76340025]
[1767883075388,0.85,3074.6,3072.7,9.76340025]
[1767883075688,0.05851375,3075.5,3073.0,0.05851375]
[1767883075890,7.35321908,3075.4,3073.0,0.05851375]
[1767883076184,0.85,3075.3,3073.2,0.05851375]
[1767883076355,0.85,3075.3,3073.1,9.76212942]
[1767883076552,0.96244782,3075.1,3073.1,3.25404314]
[1767883076752,0.96244782,3075.0,3073.1,3.25404314]
[1767883076951,4.08720521,3074.6,3072.2,1.84127577]
[1767883077195,0.851,3074.5,3072.2,1.78276202]
[1767883077376,0.851,3074.5,3072.7,3.25439193]
[1767883077575,0.851,3074.5,3072.2,1.78276202]
[1767883077576,0.49382052,3074.4,3072.2,5.03771433]
[1767883077777,0.49382052,3074.4,3072.2,1.78276202]
[1767883078090,0.851,3074.3,3072.8,6.50872168]
[1767883078457,6.50448808,3074.8,3072.8,9.76308252]
[1767883078687,0.851,3074.7,3072.8,6.50872168]
[1767883079064,6.50448808,3074.8,3072.8,6.50872168]
[1767883079271,2.469748,3074.7,3072.8,6.50872168]
[1767883079858,1.618748,3074.7,3072.8,6.50872168]
[1767883080056,6.50512278,3074.5,3072.5,9.7640358]
[1767883080256,0.96244782,3074.4,3072.2,0.002]
[1767883080474,5.04965303,3073.9,3072.2,3.25689128]
[1767883080683,5.04965303,3073.9,3072.2,0.002]
[1767883080684,0.851,3073.8,3072.2,0.002]
[1767883080996,4.08720521,3073.4,3072.2,0.002]
[1767883081196,0.05851375,3073.6,3072.4,3.25477904]
[1767883081362,0.74675706,3074.3,3072.4,6.50956357]
[1767883081562,3.25248661,3074.6,3072.5,0.93176202]
[1767883081863,3.25248661,3074.6,3073.1,0.002]
[1767883081864,4.08720521,3074.3,3073.1,0.002]
[1767883082072,3.25287879,3074.2,3073.1,0.002]
[1767883082274,3.25278029,3074.3,3073.1,0.002]
[1767883082505,4.08720521,3074.0,3073.1,0.002]
[1767883082789,4.08720521,3074.0,3071.4,0.002]
[1767883082790,3.4222764,3072.8,3071.4,0.002]
[1767883083093,4.56546398,3073.2,3071.5,0.002]
[1767883083094,3.4222764,3072.7,3071.5,0.002]
[1767883083271,3.8788228,3073.1,3071.5,0.002]
[1767883083484,0.4565464,3073.1,3072.0,3.25520833]
[1767883083658,0.851,3073.0,3072.0,3.25520833]
[1767883083858,3.419,3074.0,3072.0,3.25520833]
[1767883083859,13.18060996,3074.3,3072.0,9.76562499]
[1767883084066,3.25309043,3074.0,3072.0,3.25520833]
[1767883084397,3.60258019,3074.5,3072.0,1.01269097]
[1767883084565,1.21125802,3074.4,3072.2,1.01269097]
[1767883084896,4.63353442,3074.4,3072.2,0.95417722]
[1767883085318,3.4222764,3073.9,3071.9,6.5106286]
[1767883085477,3.48079015,3074.3,3071.9,6.5106286]
[1767883085816,3.4222764,3073.4,3071.5,0.002]
[1767883085969,3.4222764,3072.9,3071.5,0.002]
[1767883086181,6.50872168,3072.8,3071.5,0.002]
[1767883086386,0.851,3072.7,3071.5,0.002]
[1767883086583,9.92772168,3072.8,3071.5,0.002]
[1767883086840,3.25298461,3074.1,3071.5,0.002]
[1767883087114,0.851,3074.0,3071.5,0.97312987]
[1767883087431,6.50596922,3074.1,3071.9,0.97112987]
[1767883087581,1.5400074,3074.0,3071.9,0.97112987]
[1767883088214,9.75958878,3073.9,3072.0,6.51041666]
[1767883088597,9.75958878,3073.9,3072.0,3.25520833]
[1767883088779,9.75958878,3073.9,3071.9,6.51057414]
[1767883088986,0.851,3073.8,3071.9,3.25525984]
[1767883089406,6.50639252,3073.9,3071.9,6.51057414]
[1767883089714,2.49450614,3073.8,3072.0,0.00771417]
[1767883089894,1.64350614,3073.8,3072.0,0.06622792]
[1767883090094,6.50702758,3073.6,3072.1,6.51020474]
[1767883090296,6.50702758,3073.6,3072.2,0.00771366]
[1767883090814,6.50702758,3073.6,3072.0,3.25516306]
[1767883091015,9.76054137,3073.6,3072.0,3.25516306]
[1767883091512,6.50702758,3073.6,3072.0,6.51037139]
[1767883091815,1.06115414,3073.5,3071.9,3.25531385]
[1767883092018,1.91215414,3073.5,3072.0,3.25519076]
[1767883092516,6.50745102,3073.4,3071.9,3.25528057]
[1767883092712,3.84104817,3074.4,3071.9,10.73703904]
[1767883093014,3.84104817,3074.4,3072.0,0.05851375]
[1767883093015,10.99349635,3074.3,3072.0,0.05851375]
[1767883093320,10.14249635,3074.3,3072.2,0.05851375]
[1767883093517,0.851,3074.2,3072.2,0.05851375]
[1767883093691,0.851,3074.2,3072.2,1.02964362]
[1767883094419,6.50596922,3074.1,3072.3,6.50978094]
[1767883094622,0.73569692,3074.0,3072.3,6.50978094]
[1767883094985,0.73569692,3074.0,3072.3,9.76467141]
[1767883095186,0.73569692,3074.0,3072.3,10.73580128]
[1767883095418,3.25291842,3074.2,3072.4,0.97112987]
[1767883095622,0.851,3074.0,3072.4,0.97112987]
[1767883095826,0.851,3074.0,3072.5,0.05851375]
[1767883096030,0.001,3073.9,3072.5,1.02964362]
[1767883096241,0.001,3073.9,3072.3,6.50978094]
[1767883096440,6.50739252,3073.9,3072.3,6.50978094]
[1767883096756,0.001,3073.9,3072.7,0.97112987]
[1767883096910,0.851,3074.6,3072.9,0.97112987]
[1767883097094,0.851,3074.6,3072.8,3.48079015]
[1767883097296,0.001,3075.3,3073.4,0.05851375]
[1767883097503,0.001,3075.3,3073.5,0.849]
[1767883097732,6.50447615,3075.3,3073.2,0.05851375]
[1767883097952,3.4222764,3075.1,3073.0,1.82012987]
[1767883098132,3.4222764,3075.1,3073.0,0.849]
[1767883098331,3.4222764,3075.1,3072.4,1.02964362]
[1767883098332,4.39679392,3075.1,3072.4,1.02964362]
[1767883098495,4.39679392,3075.1,3072.4,3.2547585]
[1767883098496,0.91600377,3074.4,3072.4,3.2547585]
[1767883098808,9.75768417,3074.5,3072.4,6.50954303]
[1767883099014,2.16899606,3074.4,3072.4,6.50954303]
[1767883099211,2.16899606,3074.4,3071.8,0.90951375]
[1767883099399,2.16899606,3074.4,3071.8,0.002]
[1767883099400,3.4222764,3073.6,3071.8,0.002]
[1767883099605,0.851,3073.5,3071.8,0.002]
[1767883099801,0.42732764,3073.4,3072.0,3.25514805]
[1767883100435,9.76244712,3073.0,3071.8,0.002]
[1767883100615,0.851,3072.9,3071.8,0.002]
[1767883100815,3.4222764,3072.6,3071.8,0.002]
[1767883100999,3.4222764,3072.6,3070.9,0.002]
[1767883101000,3.4222764,3071.6,3070.2,0.002]
[1767883101226,0.851,3071.5,3070.2,0.002]
[1767883101434,3.4222764,3072.0,3070.2,0.002]
[1767883101758,4.67723141,3072.5,3070.3,0.05851375]
[1767883101759,0.851,3071.9,3070.3,0.05851375]
[1767883101928,0.851,3071.8,3070.8,3.25641195]
[1767883102134,13.01659616,3073.0,3071.1,0.05851375]
[1767883102135,6.50829808,3073.0,3071.1,0.05851375]
[1767883102436,6.50766276,3073.3,3071.5,0.05851375]
[1767883102646,0.851,3072.9,3071.5,6.56996066]
[1767883102852,0.851,3072.9,3071.1,0.05851375]
[1767883103254,0.851,3072.9,3071.5,3.25571246]
[1767883103436,0.851,3072.9,3071.1,3.25614886]
[1767883103638,0.851,3072.9,3070.9,3.25630538]
[1767883103865,3.4222764,3072.7,3070.5,0.06051375]
[1767883104066,3.4222764,3072.7,3070.5,0.002]
[1767883104067,3.4222764,3072.2,3070.5,0.002]
[1767883104233,0.851,3072.1,3070.5,0.002]
[1767883104434,3.4222764,3071.7,3070.5,0.002]
[1767883104635,3.4222764,3071.7,3070.1,0.002]
[1767883104855,0.16,3071.6,3070.1,0.002]
[1767883105050,3.4222764,3071.2,3070.0,0.002]
[1767883105256,0.16,3071.6,3070.0,0.002]
[1767883105562,3.68257502,3072.0,3070.2,0.05851375]
[1767883105748,0.851,3071.9,3070.4,0.05851375]
[1767883106138,0.851,3071.9,3070.2,1.02964362]
[1767883106139,0.851,3071.9,3070.2,0.97112987]
[1767883106462,0.851,3071.9,3070.6,6.513385]
[1767883106463,3.2553143,3071.9,3070.6,6.513385]
[1767883106667,7.36143843,3072.0,3070.6,6.513385]
[1767883106829,7.36143843,3072.0,3070.5,3.25675937]
[1767883106830,0.73614384,3071.9,3070.5,3.25675937]
[1767883108053,0.852,3071.8,3070.5,3.25675937]
[1767883108363,0.852,3071.7,3070.5,3.25675937]
[1767883108567,3.25563224,3071.6,3070.0,6.51665798]
[1767883108885,6.51126448,3071.6,3070.0,6.51665798]
[1767883109034,7.24759093,3071.6,3070.5,0.002]
[1767883109237,3.99195869,3071.6,3070.5,0.002]
[1767883109436,0.001,3071.3,3070.5,0.002]
[1767883110370,0.001,3071.3,3069.1,3.258259]
[1767883110672,6.51232456,3071.1,3069.2,0.05851375]
[1767883111341,0.852,3071.0,3069.2,0.05851375]
[1767883111647,1.26281623,3070.9,3069.2,1.02964362]
[1767883111840,0.852,3070.9,3069.2,0.97112987]
[1767883112035,0.852,3070.9,3068.9,0.002]
[1767883112241,9.76828758,3071.2,3069.1,0.05851375]
[1767883112448,0.852,3071.1,3069.1,0.05851375]
[1767883112647,6.51253662,3071.0,3069.0,6.5167807]
[1767883112872,1.06207618,3070.9,3069.0,6.5167807]
[1767883113171,3.4222764,3070.7,3069.0,3.25839035]
[1767883114065,3.4222764,3070.7,3068.9,3.26045367]
[1767883114248,0.34222764,3070.6,3068.9,3.26045367]
[1767883114437,0.852,3070.5,3068.9,3.26049568]
[1767883114637,6.51380926,3070.4,3068.9,0.002]
[1767883115070,3.25690463,3070.4,3068.9,0.002]
[1767883115274,0.852,3070.3,3068.9,0.002]
[1767883115869,0.68559577,3070.4,3069.0,1.02740953]
[1767883116083,4.10852638,3070.8,3069.2,0.05851375]
[1767883116367,4.10851457,3070.8,3069.0,1.02740953]
[1767883116538,4.10851457,3070.8,3069.2,0.05851375]
[1767883116738,0.001,3071.3,3069.3,10.80162514]
[1767883116953,0.001,3071.3,3069.6,0.05851375]
[1767883116954,3.2569631,3071.3,3069.6,0.05851375]
[1767883117151,0.32669631,3071.3,3069.6,1.02740953]
[1767883117347,3.25695024,3071.3,3069.8,0.96889578]
[1767883117575,0.001,3071.3,3069.5,0.96889578]
[1767883117740,0.001,3071.3,3069.9,1.02740953]
[1767883118156,0.001,3071.3,3070.0,0.05851375]
[1767883118359,0.001,3071.3,3069.9,0.96889578]
[1767883118568,6.51292132,3071.3,3069.7,0.85]
[1767883118773,3.25696066,3071.3,3069.7,0.85]
[1767883118940,0.001,3071.3,3069.8,9.7726236]
[1767883119141,0.001,3071.3,3069.9,0.05851375]
[1767883119341,0.001,3071.3,3070.1,0.05851375]
[1767883119848,0.001,3071.3,3069.9,1.02740953]
[1767883119849,0.001,3071.3,3070.2,0.05851375]
[1767883120252,0.001,3071.3,3070.3,4.39117218]
[1767883120597,6.50854245,3072.9,3070.9,0.05851375]
[1767883120756,6.50854245,3072.9,3070.7,1.02740953]
[1767883120757,0.852,3072.6,3070.7,1.02740953]
[1767883121066,6.5093572,3072.5,3070.8,9.76944117]
[1767883121270,3.2546786,3072.5,3070.8,9.76944117]
[1767883121480,0.73612631,3072.4,3070.8,9.76944117]
[1767883122372,0.73612631,3072.4,3070.8,6.51296078]
[1767883122591,4.10657536,3072.6,3071.1,0.05851375]
[1767883122752,0.852,3072.6,3071.1,0.05851375]
[1767883123075,0.852,3072.6,3071.2,6.51211252]
[1767883123246,4.10660443,3072.6,3071.2,6.51211252]
[1767883123445,7.36120886,3072.6,3071.2,3.25605626]
[1767883123673,0.41066044,3072.5,3071.2,6.51211252]
[1767883123978,0.99817939,3074.2,3071.7,0.05851375]
[1767883124182,3.31067191,3074.9,3071.3,3.48079015]
[1767883124183,0.99817939,3074.0,3071.3,3.48079015]
[1767883124337,0.99817939,3074.0,3071.8,0.85]
[1767883125040,9.75958878,3073.9,3071.9,3.2553143]
[1767883125242,3.4222764,3073.8,3071.4,0.05851375]
[1767883125442,1.64350614,3073.7,3071.5,0.85]
[1767883125743,1.64350614,3073.7,3071.8,3.25540277]
[1767883126375,0.99817939,3073.6,3071.8,6.51082304]
[1767883127077,6.5072393,3073.5,3071.8,3.25540277]
[1767883127273,0.75054187,3073.4,3071.7,6.5110525]
[1767883127677,0.75054187,3073.4,3071.8,0.85]
[1767883127971,0.75054187,3073.4,3071.8,0.90851375]
[1767883128176,6.50723258,3073.6,3071.7,6.5110525]
[1767883128343,0.99817939,3073.5,3071.8,0.85]
[1767883128544,3.25309043,3074.0,3071.9,0.05851375]
[1767883128875,3.25309043,3074.0,3072.1,0.05851375]
[1767883129064,3.25239548,3074.7,3072.6,13.18599441]
[1767883129065,3.2524556,3074.6,3072.6,13.18599441]
[1767883129376,3.2524556,3074.6,3072.3,1.02740953]
[1767883129377,0.99817939,3074.3,3072.3,3.25488281]
[1767883129542,0.99817939,3074.3,3072.3,3.25484367]
[1767883130064,1.05669314,3074.2,3072.3,3.25484878]
[1767883130268,0.852,3074.1,3072.5,6.50934137]
[1767883130472,10.93460635,3074.6,3072.5,6.50934137]
[1767883130649,10.93460635,3074.6,3072.5,9.76401997]
[1767883130976,10.93460635,3074.6,3072.5,6.50934137]
[1767883131980,7.68215075,3074.6,3072.5,9.76401997]
[1767883132194,0.76821508,3074.5,3072.8,3.69569553]
[1767883132358,0.76821508,3074.5,3072.9,0.849]
[1767883132558,0.76821508,3074.5,3072.9,1.87640953]
[1767883132784,0.32523955,3074.6,3073.1,0.05851375]
[1767883133092,0.001,3075.3,3073.6,3.63718178]
[1767883133093,3.25182101,3075.2,3073.6,3.63718178]
[1767883133254,3.25182101,3075.2,3073.5,0.05851375]
[1767883133255,6.50364202,3075.2,3073.7,0.849]
[1767883133455,6.50364202,3075.2,3072.6,1.02740953]
[1767883133456,3.63718178,3074.9,3072.6,1.02740953]
[1767883133654,13.00897616,3074.8,3072.7,7.3579335]
[1767883133962,1.66461579,3074.7,3072.8,0.849]
[1767883134160,1.66461579,3074.7,3072.7,6.5089335]
[1767883134353,1.66461579,3074.7,3072.6,0.96889578]
[1767883134354,3.63718178,3074.5,3072.6,4.10355668]
[1767883134550,0.851,3074.4,3072.6,4.10355668]
[1767883134754,0.851,3074.4,3072.6,7.35812935]
[1767883134981,1.66461579,3074.7,3072.9,0.05851375]
[1767883135183,6.50448808,3074.8,3073.1,1.02740953]
[1767883135387,6.50448808,3074.8,3073.2,0.849]
[1767883135679,0.851,3075.0,3073.3,6.50766276]
[1767883135680,6.50427656,3074.9,3073.3,6.50766276]
[1767883136552,0.001,3074.4,3072.4,1.02740953]
[1767883136754,0.001,3074.4,3073.2,3.25393286]
[1767883136983,0.001,3074.4,3073.3,0.96889578]
[1767883137558,0.001,3074.4,3073.4,6.50745102]
[1767883137763,0.001,3074.4,3072.7,0.96889578]
[1767883137997,3.63718178,3073.2,3071.2,0.05851375]
[1767883138218,0.851,3073.6,3071.4,3.69569553]
[1767883138492,0.851,3073.6,3071.6,0.05851375]
[1767883138808,3.63718178,3073.9,3071.6,0.05851375]
[1767883138978,0.851,3074.2,3072.0,1.02740953]
[1767883139178,0.851,3074.2,3072.2,0.05851375]
[1767883139380,0.001,3074.4,3072.4,0.05851375]
[1767883139628,9.75900154,3074.4,3072.3,6.50978094]
[1767883139773,3.63718178,3074.2,3072.3,3.25489047]
[1767883139979,0.851,3074.2,3072.3,6.50978094]
[1767883140505,13.01166872,3074.4,3072.3,6.71807659]
[1767883140809,3.63718178,3073.8,3072.3,0.20829565]
[1767883140975,4.63536117,3074.3,3072.3,0.20829565]
[1767883141175,6.50633436,3074.4,3072.3,0.20829565]